bitfinex/quotes_SOLUSD_20220105
["timestamp","ask_amount","ask_price","bid_price","bid_amount"]
[1641347910110,1.8695,167.47,167.37,23.46160341]
[1641347912815,1.8695,167.47,167.37,31.98160341]
[1641347913245,0.5,167.47,167.38,22.8529]
[1641347913443,3.42407463,167.49,167.39,1.2935]
[1641347913847,3.42407463,167.49,167.4,1.44850786]
[1641347914044,3.42407463,167.49,167.4,1.70850786]
[1641347914645,3.68407463,167.49,167.4,1.70850786]
[1641347914845,42.84407463,167.49,167.4,0.26]
[1641347915045,8.52,167.48,167.36,1.44850786]
[1641347915248,9.8882,167.48,167.36,1.44850786]
[1641347915445,10.6482,167.48,167.36,1.44850786]
[1641347915854,24.9883,167.47,167.36,1.44850786]
[1641347916047,8.52,167.46,167.34,74.96430786]
[1641347916246,24.8311,167.45,167.34,75.72430786]
[1641347916546,2.4191822,167.43,167.34,75.72430786]
[1641347916949,2.9191822,167.43,167.34,75.72430786]
[1641347918548,2.9191822,167.43,167.34,75.22430786]
[1641347919151,2.9191822,167.43,167.34,74.96430786]
[1641347919549,2.9191822,167.43,167.33,46.7169]
[1641347919750,2.9191822,167.43,167.32,92.7]
[1641347920351,1.2951,167.42,167.32,92.7]
[1641347920550,1.2951,167.42,167.32,92.96]
[1641347920751,1.7951,167.42,167.32,92.96]
[1641347921151,1.7951,167.42,167.32,94.40850786]
[1641347921751,2.0551,167.42,167.32,94.14850786]
[1641347922852,10.3151,167.42,167.32,94.14850786]
[1641347923052,10.5751,167.42,167.32,94.14850786]
[1641347923256,34.3766,167.42,167.32,94.14850786]
[1641347924056,34.3766,167.42,167.32,94.40850786]
[1641347927059,34.3766,167.42,167.32,92.96]
[1641347928261,34.3766,167.42,167.33,1.44850786]
[1641347929465,34.3766,167.42,167.33,1.70850786]
[1641347930666,34.3766,167.42,167.33,3.02140786]
[1641347932092,34.3766,167.42,167.33,26.50000786]
[1641347932795,9.02,167.42,167.33,26.50000786]
[1641347932997,9.02,167.42,167.34,1.44850786]
[1641347933397,9.02,167.42,167.34,2.20850786]
[1641347933802,9.02,167.42,167.35,1.44850786]
[1641347934002,0.5,167.42,167.35,7.07250786]
[1641347934197,24.0999,167.45,167.35,7.57250786]
[1641347934399,24.5999,167.45,167.36,1.44850786]
[1641347934597,24.5999,167.45,167.37,25.14288306]
[1641347934996,2.33384946,167.44,167.38,1.44850786]
[1641347935398,2.83384946,167.44,167.38,1.70850786]
[1641347937900,2.83384946,167.44,167.38,1.44850786]
[1641347938300,2.33384946,167.44,167.38,1.44850786]
[1641347938601,10.85384946,167.44,167.35,24.0385]
[1641347939201,10.85384946,167.44,167.35,48.5643047]
[1641347939401,11.35384946,167.44,167.35,48.5643047]
[1641347939903,11.35384946,167.44,167.35,50.1151047]
[1641347940103,11.35384946,167.44,167.35,51.56361256]
[1641347940707,11.35384946,167.44,167.35,50.1151047]
[1641347940904,11.35384946,167.44,167.35,50.6151047]
[1641347941107,1.3228,167.43,167.35,50.6151047]
[1641347941504,1.8228,167.43,167.35,26.0893]
[1641347941703,25.5267,167.43,167.35,26.0893]
[1641347941905,25.5267,167.43,167.35,24.7985]
[1641347942106,25.5267,167.43,167.35,0.76]
[1641347942406,25.5267,167.43,167.35,0.26]
[1641347942605,25.5267,167.43,167.34,96.19548479]
[1641347943904,25.5267,167.43,167.34,73.0603]
[1641347944106,25.5267,167.43,167.33,24.6264]
[1641347944305,8.52,167.42,167.32,92.7]
[1641347944506,8.78,167.42,167.32,92.7]
[1641347944706,9.28,167.42,167.32,92.7]
[1641347945107,1.3754,167.41,167.32,92.7]
[1641347945307,8.52,167.4,167.32,92.7]
[1641347945507,8.78,167.4,167.32,92.7]
[1641347945706,9.28,167.4,167.32,92.7]
[1641347946506,9.28,167.4,167.32,92.96]
[1641347947409,9.28,167.4,167.32,92.7]
[1641347949411,9.02,167.4,167.32,92.7]
[1641347950213,9.02,167.4,167.29,1.44850786]
[1641347950414,22.5403,167.39,167.29,1.44850786]
[1641347950615,2.2081004,167.38,167.32,0.31168404]
[1641347950914,2.7081004,167.38,167.32,0.31168404]
[1641347951116,1.3499,167.37,167.32,0.31168404]
[1641347951514,1.8499,167.37,167.32,0.31168404]
[1641347956617,2.1099,167.37,167.32,0.31168404]
[1641347960925,8.52,167.36,167.32,0.31168404]
[1641347961127,8.78,167.36,167.32,0.31168404]
[1641347961326,9.28,167.36,167.32,0.31168404]
[1641347961729,24.4089,167.35,167.32,0.31168404]
[1641347961929,24.9089,167.35,167.32,0.31168404]
[1641347962129,26.2442,167.35,167.32,0.31168404]
[1641347965654,26.2442,167.35,167.33,6.06439992]
[1641347965857,0.5,167.35,167.32,0.31168404]
[1641347966054,1.7984,167.35,167.32,0.31168404]
[1641347966456,1.2984,167.35,167.32,0.31168404]
[1641347966655,2.2081004,167.38,167.32,0.31168404]
[1641347966854,1.2738,167.37,167.32,0.31168404]
[1641347967355,1.7738,167.37,167.32,0.31168404]
[1641347971960,10.5538,167.37,167.32,0.31168404]
[1641347972759,1.68386177,167.36,167.32,0.31168404]
[1641347972961,8.52,167.35,167.32,0.31168404]
[1641347973464,22.5167,167.34,167.32,0.31168404]
[1641347973661,8.52,167.33,167.22,25.7238]
[1641347973862,2.42796341,167.32,167.22,26.2238]
[1641347974064,25.36276341,167.32,167.22,26.2238]
[1641347974263,25.86276341,167.32,167.22,25.2238]
[1641347974463,26.12276341,167.32,167.22,25.2238]
[1641347974663,25.86276341,167.32,167.22,25.2238]
[1641347974862,25.86276341,167.32,167.22,25.4838]
[1641347975062,1.3582,167.31,167.22,25.1942]
[1641347975462,1.8582,167.31,167.22,25.1942]
[1641347975665,1.8582,167.31,167.22,26.4401]
[1641347976767,1.8582,167.31,167.22,26.1801]
[1641347976967,1.8582,167.31,167.22,24.9342]
[1641347977970,1.8582,167.31,167.22,25.1942]
[1641347978772,1.8582,167.31,167.22,26.5104]
[1641347980572,1.8582,167.31,167.22,27.95890786]
[1641347980972,0.5,167.31,167.22,26.5104]
[1641347981174,2.42796341,167.32,167.22,26.5104]
[1641347981373,2.92796341,167.32,167.22,26.5104]
[1641347982476,4.21366341,167.32,167.22,26.5104]
[1641347983776,4.21366341,167.32,167.22,26.2504]
[1641347984974,4.21366341,167.32,167.22,26.5104]
[1641347986278,4.21366341,167.32,167.22,26.2504]
[1641347986477,4.47366341,167.32,167.22,26.2504]
[1641347986676,4.21366341,167.32,167.22,26.2504]
[1641347986877,4.21366341,167.32,167.22,24.9342]
[1641347987577,4.21366341,167.32,167.22,25.1942]
[1641347990483,4.21366341,167.32,167.22,26.5079]
[1641347990983,4.47366341,167.32,167.22,26.5079]
[1641347992615,10.20386177,167.36,167.22,26.5079]
[1641347992817,1.3659,167.35,167.22,26.5079]
[1641347993014,1.3659,167.35,167.22,27.95640786]
[1641347993216,1.8659,167.35,167.22,27.95640786]
[1641347993414,26.0379,167.35,167.22,27.95640786]
[1641347993614,2.44963585,167.34,167.22,27.95640786]
[1641347994015,2.94963585,167.34,167.22,27.95640786]
[1641347996219,1.3639,167.33,167.22,27.95640786]
[1641347996420,1.8639,167.33,167.22,27.95640786]
[1641348001732,1.8639,167.33,167.22,27.69640786]
[1641348001926,1.8639,167.33,167.22,26.2479]
[1641348002926,1.8639,167.33,167.22,27.69640786]
[1641348003127,1.8639,167.33,167.22,27.95640786]
[1641348003528,1.8639,167.33,167.22,26.5079]
[1641348003728,1.8639,167.33,167.22,27.95640786]
[1641348004529,1.68386177,167.37,167.22,27.95640786]
[1641348004530,1.68386177,167.37,167.23,8.52]
[1641348004732,1.64894955,167.39,167.37,1.69151074]
[1641348004934,1.64894955,167.39,167.38,6.06439992]
[1641348005231,1.64894955,167.39,167.38,7.51290778]
[1641348005432,1.64894955,167.39,167.38,8.27290778]
[1641348005632,3.11113873,167.42,167.38,6.82439992]
[1641348006231,3.11113873,167.46,167.38,6.32439992]
[1641348006431,3.61113873,167.46,167.38,6.32439992]
[1641348006634,2.73428644,167.45,167.38,6.32439992]
[1641348006830,3.23428644,167.45,167.38,6.32439992]
[1641348007031,2.73428644,167.45,167.38,6.32439992]
[1641348007632,2.73428644,167.45,167.38,0.26]
[1641348008032,2.73428644,167.45,167.37,1.95151074]
[1641348008834,1.2739,167.47,167.37,1.95151074]
[1641348009038,39.16,167.49,167.37,7.84451074]
[1641348009236,39.16,167.49,167.38,25.356498]
[1641348009433,39.16,167.49,167.38,27.30500586]
[1641348009638,39.16,167.49,167.38,36.08500586]
[1641348009840,39.16,167.49,167.39,11.55211037]
[1641348010035,39.16,167.49,167.4,8.52]
[1641348010234,39.16,167.49,167.4,9.96850786]
[1641348010435,39.16,167.49,167.4,10.72850786]
[1641348010663,39.16,167.49,167.41,1.44850786]
[1641348010862,1.3694,167.59,167.42,8.52]
[1641348010863,3.11113873,167.59,167.42,8.52]
[1641348011062,3.11113873,167.59,167.43,72.9716]
[1641348011260,2.88427943,167.58,167.45,29.63246965]
[1641348011463,3.38427943,167.58,167.45,44.19646965]
[1641348011664,3.38427943,167.58,167.45,44.45646965]
[1641348011869,3.38427943,167.58,167.45,43.95646965]
[1641348013466,3.38427943,167.58,167.45,45.90497751]
[1641348013665,3.38427943,167.58,167.45,44.45646965]
[1641348014767,2.88427943,167.58,167.45,14.824]
[1641348014969,2.88427943,167.58,167.45,8.78]
[1641348015864,2.88427943,167.58,167.45,8.52]
[1641348016067,2.88427943,167.58,167.39,122.93480786]
[1641348016068,20.48878729,167.58,167.42,8.52]
[1641348016867,20.48878729,167.58,167.43,28.36343245]
[1641348017066,13.11278729,167.58,167.43,28.36343245]
[1641348017465,13.11278729,167.58,167.43,28.62343245]
[1641348018466,11.66427943,167.58,167.43,28.62343245]
[1641348019568,11.40427943,167.58,167.43,28.62343245]
[1641348020367,11.40427943,167.58,167.43,44.32943245]
[1641348020568,11.40427943,167.58,167.43,45.77794031]
[1641348022872,11.40427943,167.58,167.43,38.59194031]
[1641348023472,11.66427943,167.58,167.43,38.59194031]
[1641348025975,11.66427943,167.58,167.43,37.14343245]
[1641348026875,2.38427943,167.58,167.43,55.69015308]
[1641348027377,2.38427943,167.58,167.43,65.78312227]
[1641348029478,2.38427943,167.58,167.43,55.69015308]
[1641348030679,1.295,167.62,167.43,55.69015308]
[1641348030876,1.795,167.62,167.43,62.12815308]
[1641348031080,1.795,167.62,167.43,168.56815308]
[1641348031280,1.295,167.62,167.43,187.61392227]
[1641348031480,1.3085,167.63,167.44,23.5596]
[1641348031679,1.3085,167.63,167.45,31.8412]
[1641348031878,3.00751367,167.62,167.45,156.82792063]
[1641348032078,3.00751367,167.62,167.47,0.31155381]
[1641348032281,3.00751367,167.62,167.48,8.52]
[1641348032479,3.00751367,167.62,167.48,27.32672063]
[1641348032680,3.00751367,167.62,167.49,7.94311812]
[1641348032880,3.00751367,167.62,167.5,40.45980412]
[1641348033178,3.00751367,167.62,167.5,42.16831198]
[1641348033378,3.00751367,167.62,167.51,1.44850786]
[1641348033580,3.00751367,167.62,167.51,10.22850786]
[1641348033879,3.50751367,167.62,167.51,10.72850786]
[1641348034179,3.50751367,167.62,167.52,1.44850786]
[1641348034580,3.50751367,167.62,167.52,1.70850786]
[1641348035581,3.00751367,167.62,167.53,1.44850786]
[1641348035781,3.50751367,167.62,167.53,1.44850786]
[1641348035982,3.50751367,167.62,167.53,1.70850786]
[1641348036784,3.50751367,167.62,167.53,0.26]
[1641348036983,3.76751367,167.62,167.51,8.78]
[1641348037182,3.76751367,167.62,167.51,0.26]
[1641348037683,3.76751367,167.62,167.5,32.19980412]
[1641348037884,3.50751367,167.62,167.5,32.19980412]
[1641348038084,3.50751367,167.62,167.51,9.96850786]
[1641348038485,3.50751367,167.62,167.52,1.44850786]
[1641348038684,3.50751367,167.62,167.52,9.96850786]
[1641348038883,3.50751367,167.62,167.52,10.22850786]
[1641348039084,3.50751367,167.62,167.53,1.44850786]
[1641348039485,3.50751367,167.62,167.53,1.70850786]
[1641348040185,3.50751367,167.62,167.53,0.26]
[1641348040686,3.50751367,167.62,167.52,8.52]
[1641348040687,3.50751367,167.62,167.54,1.44850786]
[1641348041186,3.50751367,167.62,167.54,1.70850786]
[1641348041887,3.50751367,167.62,167.54,0.26]
[1641348042088,3.50751367,167.62,167.5,56.60151198]
[1641348042289,3.50751367,167.62,167.51,8.52]
[1641348042492,3.50751367,167.62,167.51,8.78]
[1641348042689,3.50751367,167.62,167.51,9.28]
[1641348042890,3.50751367,167.62,167.51,8.78]
[1641348043690,3.50751367,167.62,167.5,33.38831198]
[1641348044516,3.76751367,167.62,167.5,33.38831198]
[1641348045220,5.13591367,167.62,167.5,33.38831198]
[1641348045618,5.13591367,167.62,167.5,33.64831198]
[1641348045917,5.13591367,167.62,167.5,34.14831198]
[1641348049021,29.15691367,167.62,167.5,34.14831198]
[1641348050726,28.89691367,167.62,167.5,34.14831198]
[1641348050925,28.89691367,167.62,167.5,42.66831198]
[1641348051527,28.89691367,167.62,167.5,52.77191449]
[1641348052528,29.15691367,167.62,167.5,52.77191449]
[1641348053829,28.89691367,167.62,167.5,52.77191449]
[1641348054027,29.15691367,167.62,167.5,52.77191449]
[1641348060838,28.89691367,167.62,167.5,52.51191449]
[1641348062339,28.89691367,167.62,167.5,52.77191449]
[1641348062740,0.07926066,167.56,167.5,52.77191449]
[1641348071669,0.07926066,167.56,167.5,54.02541449]
[1641348072969,0.07926066,167.56,167.5,9.96850786]
[1641348073169,0.07926066,167.56,167.48,75.26420786]
[1641348073375,0.07926066,167.56,167.48,73.8157]
[1641348073572,0.07926066,167.56,167.45,1.44850786]
[1641348073970,0.07926066,167.56,167.46,23.18252678]
[1641348074572,0.07926066,167.56,167.46,23.44252678]
[1641348074773,0.07926066,167.56,167.46,24.89103464]
[1641348078979,0.07926066,167.56,167.46,25.39103464]
[1641348080584,0.07926066,167.56,167.47,23.4846]
[1641348080784,0.07926066,167.56,167.48,8.52]
[1641348080984,0.07926066,167.56,167.48,20.83211037]
[1641348081183,0.07926066,167.56,167.49,10.10360251]
[1641348081385,0.07926066,167.56,167.5,8.52]
[1641348081582,0.07926066,167.56,167.5,10.22850786]
[1641348081786,0.07926066,167.56,167.5,10.72850786]
[1641348081982,0.07926066,167.56,167.51,1.44850786]
[1641348082181,0.07926066,167.56,167.51,9.96850786]
[1641348082381,0.07926066,167.56,167.51,10.72850786]
[1641348083082,0.07926066,167.56,167.51,2.20850786]
[1641348083482,0.07926066,167.56,167.51,1.70850786]
[1641348083683,0.07926066,167.56,167.51,0.26]
[1641348084086,0.07926066,167.56,167.49,23.7318]
[1641348084284,0.07926066,167.56,167.5,8.52]
[1641348084485,0.07926066,167.56,167.5,10.46850786]
[1641348084684,0.07926066,167.56,167.5,10.72850786]
[1641348086489,0.07926066,167.56,167.5,10.22850786]
[1641348086687,0.07926066,167.56,167.5,10.72850786]
[1641348088086,2.37488359,167.55,167.5,10.22850786]
[1641348088288,2.37488359,167.55,167.5,8.78]
[1641348088488,2.37488359,167.55,167.5,0.26]
[1641348088889,2.37488359,167.55,167.47,87.51590786]
[1641348089090,2.37488359,167.55,167.47,87.25590786]
[1641348089689,2.37488359,167.55,167.47,10.46850786]
[1641348089891,2.37488359,167.55,167.47,9.02]
[1641348090289,2.37488359,167.55,167.48,1.44850786]
[1641348090498,2.37488359,167.55,167.48,1.70850786]
[1641348090891,2.37488359,167.55,167.48,1.44850786]
[1641348091396,2.37488359,167.55,167.48,1.94850786]
[1641348091795,2.37488359,167.55,167.48,1.44850786]
[1641348092395,2.37488359,167.55,167.48,1.70850786]
[1641348093596,2.37488359,167.55,167.48,0.26]
[1641348093798,2.87488359,167.55,167.48,0.26]
[1641348093998,2.37488359,167.55,167.47,8.78]
[1641348094205,2.37488359,167.55,167.47,9.28]
[1641348094399,2.87488359,167.55,167.47,9.28]
[1641348094598,2.87488359,167.55,167.48,1.44850786]
[1641348094799,0.07926066,167.56,167.48,1.44850786]
[1641348094998,0.07926066,167.56,167.48,1.70850786]
[1641348095498,0.07926066,167.56,167.49,1.44850786]
[1641348095698,0.07926066,167.56,167.48,0.26]
[1641348095897,2.37577464,167.56,167.47,9.28]
[1641348096099,2.37577464,167.56,167.47,8.78]
[1641348096299,2.87577464,167.56,167.47,8.78]
[1641348098624,2.87577464,167.56,167.47,10.22850786]
[1641348099024,2.87577464,167.56,167.47,8.78]
[1641348103329,3.13577464,167.56,167.47,8.78]
[1641348103530,3.13577464,167.56,167.47,0.26]
[1641348103731,3.13577464,167.56,167.45,36.050983]
[1641348104330,1.2577,167.55,167.45,36.050983]
[1641348104533,1.5177,167.55,167.45,36.050983]
[1641348104731,2.0177,167.55,167.45,36.050983]
[1641348105133,2.0177,167.55,167.45,36.310983]
[1641348105332,1.7577,167.55,167.45,36.310983]
[1641348105533,1.7577,167.55,167.46,1.44850786]
[1641348105933,1.7577,167.55,167.46,1.70850786]
[1641348109136,1.2577,167.55,167.47,1.44850786]
[1641348109536,1.2577,167.55,167.47,1.70850786]
[1641348109740,0.07926066,167.56,167.47,1.70850786]
[1641348109937,0.07926066,167.56,167.48,20.07211037]
[1641348110337,0.07926066,167.56,167.49,17.69283174]
[1641348110539,0.07926066,167.56,167.49,49.58413174]
[1641348110739,0.07926066,167.56,167.5,11.55211037]
[1641348110939,0.07926066,167.56,167.5,12.05211037]
[1641348111239,0.07926066,167.56,167.52,29.60432879]
[1641348111639,0.07926066,167.56,167.52,29.86432879]
[1641348112038,2.5553596,167.56,167.52,0.26]
[1641348112441,2.5553596,167.56,167.49,32.3913]
[1641348112640,2.5553596,167.56,167.49,31.6313]
[1641348113040,2.5553596,167.56,167.49,62.7874703]
[1641348114042,2.5553596,167.56,167.49,39.6761703]
[1641348114744,3.0553596,167.56,167.49,39.6761703]
[1641348115645,3.0553596,167.56,167.49,8.52]
[1641348116843,8.6173596,167.56,167.46,10.10360251]
[1641348117044,8.8773596,167.56,167.46,0.5]
[1641348117443,8.8773596,167.56,167.44,24.3647]
[1641348117642,25.2634,167.55,167.44,24.3647]
[1641348117845,25.7634,167.55,167.44,54.66933537]
[1641348118042,26.0234,167.55,167.44,54.66933537]
[1641348118244,26.0234,167.55,167.44,56.11784323]
[1641348118745,25.7634,167.55,167.44,54.66933537]
[1641348118946,25.7634,167.55,167.45,1.44850786]
[1641348119146,1.8043,167.55,167.45,1.44850786]
[1641348119347,1.3043,167.55,167.46,10.10360251]
[1641348119546,1.3043,167.55,167.46,10.36360251]
[1641348119747,1.8043,167.55,167.46,12.31211037]
[1641348120351,1.8043,167.55,167.46,1.70850786]
[1641348121851,1.8043,167.55,167.46,1.44850786]
[1641348123272,1.8043,167.55,167.46,1.70850786]
[1641348134285,1.8043,167.55,167.46,2.20850786]
[1641348134486,1.8043,167.55,167.46,1.70850786]
[1641348134889,1.8043,167.55,167.46,0.26]
[1641348135091,1.8043,167.55,167.45,1.5203]
[1641348135588,1.8043,167.55,167.44,54.66933537]
[1641348135589,2.0643,167.55,167.44,54.66933537]
[1641348135788,2.0643,167.55,167.44,63.18933537]
[1641348136691,2.0643,167.55,167.44,32.8847]
[1641348137995,2.0643,167.55,167.44,33.1447]
[1641348138794,1.8043,167.55,167.44,33.1447]
[1641348139092,1.8043,167.55,167.45,1.44850786]
[1641348139492,1.8043,167.55,167.45,1.70850786]
[1641348141694,1.8043,167.55,167.45,2.20850786]
[1641348145197,1.8043,167.55,167.46,1.44850786]
[1641348145499,1.8043,167.55,167.46,0.76]
[1641348145897,1.8043,167.55,167.46,2.20850786]
[1641348146097,1.8043,167.55,167.46,1.70850786]
[1641348146300,1.8043,167.55,167.46,2.20850786]
[1641348148902,0.07926066,167.56,167.46,20.83211037]
[1641348149103,0.07926066,167.56,167.47,24.7781]
[1641348149330,0.07926066,167.56,167.47,33.2981]
[1641348149531,0.07926066,167.56,167.48,11.55211037]
[1641348149732,0.07926066,167.56,167.5,27.34463013]
[1641348149931,0.07926066,167.56,167.5,27.84463013]
[1641348150131,0.07926066,167.56,167.5,28.10463013]
[1641348150331,0.07926066,167.56,167.5,29.55313799]
[1641348153233,0.07926066,167.56,167.5,28.10463013]
[1641348156942,0.07926066,167.56,167.51,24.20600786]
[1641348157141,0.07926066,167.56,167.51,22.7575]
[1641348157342,0.07926066,167.56,167.51,23.5175]
[1641348158746,3.04752974,167.55,167.51,23.0175]
[1641348158945,3.04752974,167.55,167.51,0.26]
[1641348159146,0.07926066,167.56,167.51,0.26]
[1641348159344,0.07926066,167.56,167.49,24.3269]
[1641348159545,0.07926066,167.56,167.49,24.5869]
[1641348159750,0.07926066,167.56,167.49,51.64662834]
[1641348160247,0.07926066,167.56,167.49,53.0951362]
[1641348164153,0.07926066,167.56,167.49,61.6151362]
[1641348164353,0.07926066,167.56,167.49,71.71873871]
[1641348164753,0.07926066,167.56,167.5,1.3304]
[1641348164953,0.07926066,167.56,167.5,1.8304]
[1641348165154,0.07926066,167.56,167.51,1.44850786]
[1641348165354,0.07926066,167.56,167.51,1.94850786]
[1641348165552,0.07926066,167.56,167.51,2.20850786]
[1641348165753,0.07926066,167.56,167.52,1.44850786]
[1641348165954,0.07926066,167.56,167.52,0.5]
[1641348166156,0.07926066,167.56,167.52,0.76]
[1641348166561,0.07926066,167.56,167.5,3.53890786]
[1641348168185,0.07926066,167.56,167.51,8.52]
[1641348168385,0.07926066,167.56,167.51,9.02]
[1641348168586,0.07926066,167.56,167.52,1.44850786]
[1641348168887,0.07926066,167.56,167.52,1.94850786]
[1641348169088,0.07926066,167.56,167.52,2.20850786]
[1641348171393,0.07926066,167.56,167.53,1.44850786]
[1641348171594,0.07926066,167.56,167.54,6.06439992]
[1641348171993,0.07926066,167.56,167.54,6.82439992]
[1641348175493,0.07926066,167.56,167.54,6.32439992]
[1641348175692,0.07926066,167.56,167.54,6.82439992]
[1641348177996,0.07926066,167.56,167.55,1.44850786]
[1641348178196,0.07926066,167.56,167.54,6.82439992]
[1641348178797,0.07926066,167.56,167.54,6.32439992]
[1641348179000,0.07926066,167.56,167.54,6.82439992]
[1641348184910,0.07926066,167.56,167.54,6.06439992]
[1641348185108,0.07926066,167.56,167.52,22.8003]
[1641348185309,0.07926066,167.56,167.5,8.8683]
[1641348186210,0.07926066,167.56,167.49,80.64682834]
[1641348186612,0.07926066,167.56,167.49,82.5953362]
[1641348186849,0.07926066,167.56,167.49,82.8553362]
[1641348187544,0.07926066,167.56,167.49,84.1171362]
[1641348192651,1.825,167.59,167.56,8.63378034]
[1641348192851,0.5,167.59,167.57,6.06439992]
[1641348193049,0.5,167.59,167.57,0.26]
[1641348193249,2.93795737,167.6,167.57,0.26]
[1641348193648,2.93795737,167.6,167.56,34.11884325]
[1641348194850,3.43795737,167.6,167.56,34.11884325]
[1641348195052,3.43795737,167.6,167.56,8.63378034]
[1641348195250,2.93795737,167.6,167.56,8.63378034]
[1641348196450,2.93795737,167.6,167.56,8.89378034]
[1641348196851,3.43795737,167.6,167.56,8.63378034]
[1641348197653,3.69795737,167.6,167.56,8.63378034]
[1641348199655,3.43795737,167.6,167.56,8.89378034]
[1641348205362,1.2589,167.63,167.56,8.89378034]
[1641348205591,1.7589,167.63,167.56,8.89378034]
[1641348206393,2.28244327,167.62,167.56,8.89378034]
[1641348206894,2.78244327,167.62,167.56,8.89378034]
[1641348213905,0.5,167.62,167.56,8.89378034]
[1641348214104,1.2589,167.63,167.56,8.89378034]
[1641348214604,23.032,167.64,167.56,10.3422882]
[1641348215005,23.032,167.64,167.56,33.5687882]
[1641348216808,1.2985,167.66,167.56,33.5687882]
[1641348217008,1.7985,167.66,167.56,33.5687882]
[1641348219510,1.7985,167.66,167.57,8.52]
[1641348219709,1.2985,167.66,167.58,30.73788604]
[1641348219910,23.3252,167.67,167.58,32.6863939]
[1641348220113,23.3252,167.67,167.58,32.9463939]
[1641348220313,23.3252,167.67,167.59,1.44850786]
[1641348220711,23.3252,167.67,167.59,1.94850786]
[1641348221111,2.37457996,167.66,167.59,25.89320786]
[1641348222011,2.37457996,167.66,167.59,26.15320786]
[1641348222814,23.3252,167.67,167.6,1.44850786]
[1641348223013,23.3252,167.67,167.6,1.70850786]
[1641348223211,23.3252,167.67,167.6,2.20850786]
[1641348223411,22.8252,167.67,167.61,1.44850786]
[1641348223611,1.3399,167.7,167.61,1.70850786]
[1641348223811,4.84313968,167.7,167.61,2.20850786]
[1641348224012,4.34313968,167.7,167.62,1.44850786]
[1641348224411,4.34313968,167.7,167.62,2.20850786]
[1641348224811,4.34313968,167.7,167.63,1.44850786]
[1641348225210,4.34313968,167.7,167.63,2.20850786]
[1641348225413,3.00323968,167.7,167.63,2.20850786]
[1641348225612,3.00323968,167.7,167.64,1.44850786]
[1641348225812,3.00323968,167.7,167.65,24.35015979]
[1641348226012,3.00323968,167.7,167.65,24.61015979]
[1641348226212,3.00323968,167.7,167.65,26.55866765]
[1641348226512,1.2641,167.74,167.65,26.55866765]
[1641348226716,1.2641,167.74,167.66,23.5831]
[1641348226914,1.7641,167.74,167.66,23.5831]
[1641348227115,1.2641,167.74,167.66,23.8431]
[1641348227415,1.2641,167.74,167.67,1.44850786]
[1641348227615,1.2641,167.74,167.67,1.70850786]
[1641348227817,1.2641,167.74,167.67,2.20850786]
[1641348228314,1.2641,167.74,167.67,1.44850786]
[1641348228515,2.0241,167.74,167.65,1.44850786]
[1641348228717,2.0241,167.74,167.6,8.52]
[1641348229315,2.0241,167.74,167.61,1.3468]
[1641348229316,8.52,167.73,167.61,1.3468]
[1641348229516,22.7525,167.72,167.61,24.5625]
[1641348229917,23.5125,167.72,167.61,24.5625]
[1641348230418,2.49664055,167.7,167.61,24.5625]
[1641348230722,26.49944055,167.7,167.61,23.4757]
[1641348230918,26.99944055,167.7,167.61,0.26]
[1641348231118,1.3723,167.69,167.58,0.26]
[1641348231322,9.8923,167.69,167.58,0.26]
[1641348231518,10.6523,167.69,167.56,8.89378034]
[1641348232019,24.0031,167.68,167.56,8.89378034]
[1641348232217,24.0031,167.68,167.56,40.29272131]
[1641348232418,24.7631,167.68,167.56,40.29272131]
[1641348232818,33.2831,167.68,167.56,40.29272131]
[1641348233221,1.2948,167.67,167.56,40.03272131]
[1641348233419,1.7948,167.67,167.56,40.03272131]
[1641348233618,2.0548,167.67,167.56,40.03272131]
[1641348234519,2.0548,167.67,167.56,40.29272131]
[1641348235620,2.0548,167.67,167.57,23.2307]
[1641348236020,2.0548,167.67,167.57,23.4907]
[1641348236222,2.0548,167.67,167.57,0.26]
[1641348236523,2.0548,167.67,167.56,40.29272131]
[1641348239561,2.0548,167.67,167.57,24.4042]
[1641348239762,1.7948,167.67,167.57,24.4042]
[1641348239961,1.7948,167.67,167.57,24.6642]
[1641348240165,1.7948,167.67,167.57,24.4042]
[1641348241063,2.0548,167.67,167.57,24.4042]
[1641348241861,2.0548,167.67,167.56,8.63378034]
[1641348242064,2.0548,167.67,167.56,8.89378034]
[1641348242263,2.0548,167.67,167.56,8.63378034]